fUST/lending_fUST_20240426
["ID","MTS","AMOUNT","RATE_DAILY","PERIOD"]
[323592194,1714099863665,-500.0,0.00055616,120]
[323592196,1714099863674,-500.0,0.00055616,120]
[323592198,1714099863685,-500.0,0.00055616,120]
[323592201,1714099863694,-500.0,0.00055616,120]
[323592203,1714099863705,-967.69,0.00055616,120]
[323592205,1714099863714,-564.90965867,0.00055616,120]
[323592207,1714099863724,-500.0,0.00055616,120]
[323592209,1714099863735,-500.0,0.00055616,120]
[323592210,1714099863744,-500.0,0.00055616,120]
[323592212,1714099863754,-504.52304657,0.00055616,120]
[323592214,1714099863762,-500.0,0.00055616,120]
[323592216,1714099863772,-500.0,0.00055616,120]
[323592218,1714099863781,-500.0,0.00055616,120]
[323592220,1714099863790,-500.0,0.00055616,120]
[323592222,1714099863800,-500.0,0.00055616,120]
[323592224,1714099863809,-826.47,0.00055616,120]
[323592226,1714099863818,-501.18741437,0.00055616,120]
[323592228,1714099863827,-500.0,0.00055616,120]
[323592230,1714099863837,-500.0,0.00055616,120]
[323592232,1714099863846,-501.62222181,0.00055616,120]
[323592234,1714099863855,-501.2852392,0.00055616,120]
[323592236,1714099863864,-500.0,0.00055616,120]
[323592238,1714099863873,-500.0,0.00055616,120]
[323592241,1714099863885,-500.0,0.00055616,120]
[323592243,1714099863894,-500.0,0.00055616,120]
[323592245,1714099863903,-500.0,0.00055616,120]
[323592247,1714099863913,-500.0,0.00055616,120]
[323592249,1714099863922,-500.0,0.00055616,120]
[323592250,1714099863931,-1913.27,0.00055616,120]
[323592252,1714099863941,-500.0,0.00055616,120]
[323592254,1714099863950,-500.0,0.00055616,120]
[323592256,1714099863958,-1459.11,0.00055616,120]
[323592258,1714099863969,-500.0,0.00055616,120]
[323592261,1714099863979,-1614.85,0.00055616,120]
[323592262,1714099863988,-500.0,0.00055616,120]
[323592264,1714099863996,-1759.91,0.00055616,120]
[323592266,1714099864005,-500.0,0.00055616,120]
[323592268,1714099864015,-500.0,0.00055616,120]
[323592270,1714099864024,-1364.53,0.00055616,120]
[323592272,1714099864033,-500.0,0.00055616,120]
[323592274,1714099864042,-503.03902389,0.00055616,120]
[323592275,1714099864051,-500.0,0.00055616,120]
[323592276,1714099864060,-500.0,0.00055616,120]
[323592277,1714099864069,-500.0,0.00055616,120]
[323592278,1714099864078,-500.0,0.00055616,120]
[323592279,1714099864088,-500.0,0.00055616,120]
[323592280,1714099864098,-500.0,0.00055616,120]
[323592282,1714099864107,-500.0,0.00055616,3]
[323592284,1714099864116,-1036.00453959,0.00055616,120]
[323592286,1714099864126,-500.0,0.00055616,120]
[323592288,1714099864135,-500.0,0.00055616,120]
[323592290,1714099864144,-500.0,0.00055616,120]
[323592292,1714099864153,-882.66,0.00055616,120]
[323592294,1714099864162,-8110.34,0.00055616,120]
[323592296,1714099864171,-500.0,0.00055616,120]
[323592298,1714099864181,-500.0,0.00055616,120]
[323592300,1714099864190,-500.0,0.00055616,120]
[323592302,1714099864200,-500.0,0.00055616,120]
[323592304,1714099864209,-500.0,0.00055616,120]
[323592306,1714099864219,-2998.7,0.00055616,120]
[323592308,1714099864228,-1243.4,0.00055616,120]
[323592310,1714099864237,-500.0,0.00055616,120]
[323592312,1714099864247,-568.63,0.00055616,120]
[323592314,1714099864256,-902.12,0.00055616,120]
[323592316,1714099864265,-501.38893741,0.00055616,120]
[323592318,1714099864275,-500.0,0.00055616,120]
[323592320,1714099864284,-500.0,0.00055616,120]
[323592322,1714099864293,-500.0,0.00055616,120]
[323592324,1714099864303,-502.83600425,0.00055616,120]
[323592326,1714099864312,-500.0,0.00055616,120]
[323592328,1714099864321,-500.0,0.00055616,120]
[323592330,1714099864330,-1645.56,0.00055616,120]
[323592332,1714099864340,-10108.47,0.00055616,120]
[323592334,1714099864350,-500.0,0.00055616,120]
[323592336,1714099864359,-500.0,0.00055616,120]
[323592338,1714099864369,-500.0,0.00055616,120]
[323592340,1714099864377,-633.34686557,0.00055616,120]
[323592342,1714099864387,-501.18104438,0.00055616,120]
[323592344,1714099864396,-500.0,0.00055616,120]
[323592346,1714099864405,-500.0,0.00055616,120]
[323592348,1714099864419,-867.82,0.00055616,120]
[323592350,1714099864428,-500.0,0.00055616,120]
[323592352,1714099864438,-1106.3,0.00055616,120]
[323592354,1714099864447,-500.0,0.00055616,120]
[323592356,1714099864457,-500.0,0.00055616,120]
[323592358,1714099864466,-297.35068592,0.00055616,120]
[323592360,1714099864475,-500.0,0.00055616,120]
[323592362,1714099864484,-500.0,0.00055616,120]
[323592364,1714099864495,-500.0,0.00055616,120]
[323592366,1714099864504,-961.27,0.00055616,120]
[323592368,1714099864514,-500.0,0.00055616,120]
[323592370,1714099864523,-500.0,0.00055616,120]
[323592372,1714099864533,-500.0,0.00055616,120]
[323592374,1714099864543,-500.0,0.00055616,120]
[323592376,1714099864551,-504.04322091,0.00055616,120]
[323592378,1714099864560,-500.0,0.00055616,120]
[323592380,1714099864569,-500.0,0.00055616,120]
[323592382,1714099864579,-500.0,0.00055616,120]
[323592384,1714099864588,-500.0,0.00055616,120]
[323592386,1714099864597,-500.0,0.00055616,120]
[323592388,1714099864606,-14214.71,0.00055616,120]
[323592390,1714099864615,-588.6,0.00055616,120]
[323592392,1714099864624,-501.48418289,0.00055616,120]
[323592394,1714099864634,-500.0,0.00055616,120]
[323592396,1714099864644,-2011.18,0.00055616,120]
[323592398,1714099864653,-500.0,0.00055616,120]
[323592400,1714099864662,-1690.05,0.00055616,120]
[323592403,1714099864671,-2570.54,0.00055616,120]
[323592405,1714099864680,-3418.88,0.00055616,21]
[323592407,1714099864690,-500.0,0.00055616,120]
[323592409,1714099864698,-502.12945477,0.00055616,120]
[323592411,1714099864707,-500.0,0.00055616,120]
[323592413,1714099864716,-500.0,0.00055616,7]
[323592415,1714099864725,-500.0,0.00055616,120]
[323592417,1714099864735,-1241.59,0.00055616,120]
[323592418,1714099864744,-541.93,0.00055616,120]
[323592420,1714099864753,-500.0,0.00055616,120]
[323592422,1714099864763,-500.0,0.00055616,120]
[323592424,1714099864771,-620.31,0.00055616,120]
[323592426,1714099864780,-4286.96,0.00055616,120]
[323592428,1714099864790,-500.0,0.00055616,120]
[323592430,1714099864799,-500.0,0.00055616,120]
[323592432,1714099864809,-500.0,0.00055616,120]
[323592434,1714099864818,-632.57,0.00055616,120]
[323592436,1714099864827,-2408.71,0.00055616,120]
[323592438,1714099864837,-500.0,0.00055616,120]
[323592440,1714099864846,-1365.71,0.00055616,120]
[323592442,1714099864855,-500.0,0.00055616,120]
[323592444,1714099864864,-500.0,0.00055616,120]
[323592446,1714099864873,-500.0,0.00055616,120]
[323592448,1714099864883,-631.83,0.00055616,120]
[323592450,1714099864891,-500.0,0.00055616,120]
[323592452,1714099864901,-500.0,0.00055616,120]
[323592454,1714099864910,-500.0,0.00055616,120]
[323592456,1714099864919,-500.0,0.00055616,120]
[323592458,1714099864928,-384.94424847,0.00055616,120]
[323592460,1714099864938,-500.0,0.00055616,120]
[323592462,1714099864946,-500.0,0.00055616,120]
[323592464,1714099864955,-500.0,0.00055616,120]
[323592466,1714099864964,-500.0,0.00055616,120]
[323592468,1714099864974,-500.0,0.00055616,60]
[323592470,1714099864982,-500.0,0.00055616,120]
[323592472,1714099864991,-597.63,0.00055616,120]
[323592474,1714099865000,-500.0,0.00055616,120]
[323592476,1714099865010,-3900.41,0.00055616,120]
[323592478,1714099865018,-500.0,0.00055616,120]
[323592480,1714099865028,-541.35,0.00055616,120]
[323592482,1714099865037,-500.0,0.00055616,120]
[323592484,1714099865046,-500.0,0.00055616,120]
[323592486,1714099865056,-500.0,0.00055616,120]
[323592488,1714099865065,-500.0,0.00055616,120]
[323592490,1714099865075,-500.0,0.00055616,120]
[323592493,1714099865087,-599.97731112,0.00055616,120]
[323592495,1714099865097,-500.0,0.00055616,120]
[323592496,1714099865106,-500.0,0.00055616,120]
[323592499,1714099865116,-1321.28,0.00055616,120]
[323592501,1714099865126,-500.0,0.00055616,120]
[323592503,1714099865136,-500.0,0.00055616,120]
[323592505,1714099865145,-521.76709819,0.00055616,120]
[323592506,1714099865154,-500.0,0.00055616,120]
[323592509,1714099865163,-500.0,0.00055616,120]
[323592511,1714099865173,-709.88,0.00055616,120]
[323592512,1714099865182,-500.0,0.00055616,120]
[323592515,1714099865191,-500.0,0.00055616,120]
[323592516,1714099865201,-500.0,0.00055616,120]
[323592519,1714099865210,-1376.96,0.00055616,120]
[323592520,1714099865219,-500.0,0.00055616,120]
[323592523,1714099865229,-500.0,0.00055616,120]
[323592524,1714099865238,-1270.91,0.00055616,120]
[323592526,1714099865247,-3138.71,0.00055616,120]
[323592528,1714099865256,-876.13,0.00055616,120]
[323592530,1714099865266,-500.0,0.00055616,120]
[323592532,1714099865275,-1259.67,0.00055616,120]
[323592534,1714099865284,-1612.5,0.00055616,120]
[323592536,1714099865294,-500.0,0.00055616,120]
[323592538,1714099865303,-500.0,0.00055616,120]
[323592540,1714099865312,-625.72,0.00055616,120]
[323592542,1714099865322,-500.0,0.00055616,120]
[323592545,1714099865332,-500.0,0.00055616,120]
[323592555,1714099865342,-500.0,0.00055616,120]
[323592557,1714099865439,-648.27,0.00055616,120]
[323592559,1714099865449,-500.0,0.00055616,120]
[323592560,1714099865460,-735.51,0.00055616,120]
[323592561,1714099865470,-500.0,0.00055616,120]
[323592562,1714099865479,-500.0,0.00055616,120]
[323592563,1714099865488,-500.0,0.00055616,120]
[323592564,1714099865499,-500.0,0.00055616,2]
[323592565,1714099865509,-1608.79,0.00055616,120]
[323592566,1714099865518,-4378.86,0.00055616,120]
[323592567,1714099865527,-653.21,0.00055616,120]
[323592568,1714099865537,-500.0,0.00055616,120]
[323592569,1714099865547,-2607.7,0.0005589,120]
[323592570,1714099865557,-500.0,0.0005589,120]
[323592571,1714099865568,-500.0,0.0005589,120]
[323592572,1714099865578,-500.0,0.0005589,120]
[323592573,1714099865588,-500.0,0.0005589,120]
[323592574,1714099865598,-500.0,0.0005589,120]
[323592575,1714099865607,-500.0,0.0005589,120]
[323592576,1714099865617,-501.43658581,0.0005589,120]
[323592577,1714099865628,-500.0,0.0005589,120]
[323592578,1714099865637,-500.0,0.0005589,120]
[323592579,1714099865646,-500.0,0.0005589,120]
[323592580,1714099865658,-501.18400004,0.0005589,120]
[323592581,1714099865667,-500.0,0.0005589,120]
[323592582,1714099865677,-500.0,0.0005589,120]
[323592583,1714099865687,-500.0,0.0005589,120]
[323592584,1714099865697,-500.0,0.0005589,120]
[323592585,1714099865706,-500.86779557,0.0005589,120]
[323592586,1714099865716,-500.0,0.0005589,120]
[323592587,1714099865725,-331.27082049,0.0005589,120]
[323592588,1714099865735,-175.52877088,0.0005589,120]
[323592589,1714099865744,-500.0,0.0005589,120]
[323592590,1714099865753,-505.3774374,0.0005589,120]
[323592591,1714099865763,-976.68,0.0005589,120]
[323592592,1714099865773,-500.0,0.0005589,120]
[323592593,1714099865782,-500.0,0.0005589,120]
[323592594,1714099865793,-500.0,0.0005589,120]
[323592595,1714099865803,-500.0,0.0005589,120]
[323592596,1714099865813,-500.0,0.0005589,120]
[323592597,1714099865823,-500.0,0.0005589,120]
[323592598,1714099865832,-500.0,0.0005589,120]
[323592599,1714099865841,-500.0,0.0005589,120]
[323592601,1714099865851,-500.0,0.0005589,120]
[323592603,1714099865861,-500.0,0.0005589,120]
[323592604,1714099865870,-512.96,0.0005589,120]
[323592605,1714099865879,-500.0,0.0005589,120]
[323592606,1714099865889,-500.0,0.0005589,120]
[323592607,1714099865899,-500.0,0.0005589,120]
[323592608,1714099865909,-500.0,0.0005589,120]
[323592610,1714099865918,-500.0,0.0005589,120]
[323592612,1714099865928,-263.58118826,0.0005589,60]
[323592614,1714099865938,-500.0,0.0005589,120]
[323592615,1714099865948,-500.0,0.0005589,120]
[323592616,1714099865957,-1900.81,0.0005589,120]
[323592617,1714099865966,-500.0,0.0005589,120]
[323592618,1714099865976,-1543.65,0.0005589,120]
[323592619,1714099865985,-500.0,0.0005589,120]
[323592620,1714099865995,-500.0,0.0005589,120]
[323592621,1714099866005,-500.0,0.0005589,120]
[323592622,1714099866014,-500.0,0.0005589,120]
[323592623,1714099866024,-500.0,0.0005589,120]
[323592624,1714099866034,-500.0,0.0005589,120]
[323592625,1714099866046,-500.0,0.0005589,120]
[323592626,1714099866055,-516.59,0.0005589,2]
[323592627,1714099866064,-500.0,0.0005589,120]
[323592628,1714099866074,-500.0,0.0005589,120]
[323592629,1714099866083,-228.3351948,0.0005589,120]
[323592630,1714099866093,-500.0,0.0005589,120]
[323592631,1714099866102,-641.72,0.0005589,120]
[323592632,1714099866112,-500.0,0.0005589,120]
[323592633,1714099866124,-500.0,0.0005589,120]
[323592634,1714099866133,-1597.62,0.0005589,120]
[323592635,1714099866142,-500.0,0.0005589,120]
[323592636,1714099866152,-500.0,0.0005589,120]
[323592637,1714099866162,-595.18,0.0005589,120]
[323592638,1714099866171,-500.0,0.0005589,120]
[323592639,1714099866180,-500.0,0.0005589,120]
[323592640,1714099866190,-500.0,0.0005589,120]
[323592641,1714099866199,-500.0,0.0005589,120]
[323592642,1714099866208,-500.0,0.0005589,120]
[323592643,1714099866218,-500.0,0.0005589,120]
[323592644,1714099866227,-1727.11,0.0005589,120]
[323592645,1714099866236,-500.0,0.0005589,120]
[323592646,1714099866245,-500.0,0.0005589,120]
[323592647,1714099866254,-501.61004104,0.0005589,120]
[323592648,1714099866264,-500.0,0.0005589,120]
[323592649,1714099866274,-500.0,0.0005589,120]
[323592650,1714099866283,-1085.28,0.0005589,120]
[323592651,1714099866292,-500.0,0.0005589,120]
[323592652,1714099866302,-769.34,0.0005589,120]
[323592653,1714099866311,-500.0,0.0005589,120]
[323592654,1714099866320,-500.0,0.0005589,7]
[323592655,1714099866329,-500.0,0.0005589,120]
[323592656,1714099866339,-501.32710305,0.0005589,120]
[323592657,1714099866349,-500.0,0.0005589,120]
[323592658,1714099866358,-500.0,0.0005589,120]
[323592659,1714099866368,-500.0,0.0005589,120]
[323592660,1714099866378,-500.0,0.0005589,120]
[323592661,1714099866387,-967.69,0.0005589,120]
[323592662,1714099866396,-500.0,0.0005589,120]
[323592663,1714099866406,-500.0,0.0005589,120]
[323592664,1714099866419,-500.0,0.0005589,120]
[323592665,1714099866428,-500.0,0.0005589,120]
[323592666,1714099866438,-155.54083887,0.0005589,120]
[323592667,1714099866447,-431.60122644,0.0005589,120]
[323592669,1714099866457,-500.0,0.0005589,120]
[323592671,1714099866466,-500.0,0.0005589,120]
[323592673,1714099866476,-826.47,0.0005589,120]
[323592675,1714099866485,-500.0,0.0005589,120]
[323592677,1714099866495,-500.0,0.0005589,120]
[323592679,1714099866505,-500.0,0.0005589,120]
[323592680,1714099866515,-500.0,0.0005589,120]
[323592681,1714099866525,-589.38950977,0.0005589,120]
[323592682,1714099866534,-500.0,0.0005589,120]
[323592684,1714099866544,-500.0,0.0005589,120]
[323592686,1714099866554,-500.0,0.0005589,120]
[323592688,1714099866564,-500.0,0.0005589,120]
[323592690,1714099866574,-1913.27,0.0005589,120]
[323592691,1714099866585,-500.0,0.0005589,120]
[323592692,1714099866597,-500.0,0.0005589,120]
[323592693,1714099866607,-1459.11,0.0005589,120]
[323592694,1714099866618,-500.0,0.0005589,120]
[323592695,1714099866629,-1614.85,0.0005589,120]
[323592696,1714099866640,-500.0,0.0005589,120]
[323592697,1714099866650,-1759.91,0.0005589,120]
[323592698,1714099866660,-500.0,0.0005589,120]
[323592699,1714099866670,-500.0,0.0005589,120]
[323592700,1714099866680,-1364.53,0.0005589,120]
[323592701,1714099866690,-491.63194622,0.0005589,120]
[323592702,1714099866700,-500.0,0.0005589,120]
[323592703,1714099866710,-644.04235296,0.0005589,120]
[323592704,1714099866720,-500.0,0.0005589,120]
[323592705,1714099866729,-500.0,0.0005589,120]
[323592706,1714099866739,-500.0,0.0005589,120]
[323592707,1714099866750,-500.0,0.0005589,120]
[323592708,1714099866760,-500.0,0.0005589,3]
[323592709,1714099866770,-500.0,0.0005589,120]
[323592710,1714099866784,-500.0,0.0005589,120]
[323592711,1714099866794,-500.0,0.0005589,120]
[323592712,1714099866809,-882.66,0.0005589,120]
[323592713,1714099866818,-500.0,0.0005589,120]
[323592714,1714099866836,-8110.34,0.0005589,120]
[323592715,1714099866846,-500.0,0.0005589,120]
[323592716,1714099866873,-499.57398909,0.0005589,120]
[323592717,1714099866883,-500.0,0.0005589,120]
[323592718,1714099866893,-509.54675734,0.0005589,120]
[323592719,1714099866903,-2998.7,0.0005589,120]
[323592720,1714099866913,-1243.4,0.0005589,120]
[323592721,1714099866936,-500.0,0.0005589,120]
[323592722,1714099866946,-568.63,0.0005589,120]
[323592723,1714099866956,-902.12,0.0005589,120]
[323592724,1714099866966,-500.0,0.0005589,120]
[323592725,1714099866977,-500.0,0.0005589,120]
[323592726,1714099866991,-500.0,0.0005589,120]
[323592727,1714099867000,-500.0,0.0005589,120]
[323592728,1714099867010,-501.05404235,0.0005589,120]
[323592729,1714099867020,-1645.56,0.0005589,120]
[323592730,1714099867030,-10108.47,0.0005589,120]
[323592731,1714099867040,-500.0,0.0005589,120]
[323592732,1714099867050,-500.0,0.0005589,120]
[323592733,1714099867060,-500.0,0.0005589,120]
[323592734,1714099867069,-500.0,0.0005589,120]
[323592735,1714099867079,-500.0,0.0005589,120]
[323592736,1714099867090,-867.82,0.0005589,120]
[323592737,1714099867099,-500.0,0.0005589,120]
[323592738,1714099867109,-1106.3,0.0005589,120]
[323592739,1714099867118,-500.0,0.0005589,120]
[323592740,1714099867142,-500.0,0.0005589,120]
[323592741,1714099867172,-500.0,0.0005589,120]
[323592742,1714099867197,-500.0,0.0005589,120]
[323592743,1714099867211,-500.0,0.0005589,120]
[323592744,1714099867221,-961.27,0.0005589,120]
[323592745,1714099867238,-500.0,0.0005589,120]
[323592746,1714099867266,-500.0,0.0005589,120]
[323592747,1714099867284,-500.0,0.0005589,120]
[323592748,1714099867298,-500.0,0.0005589,120]
[323592750,1714099867313,-500.0,0.0005589,120]
[323592751,1714099867327,-500.0,0.0005589,120]
[323592752,1714099867355,-500.0,0.0005589,120]
[323592759,1714099867454,-500.0,0.0005589,120]
[323592761,1714099867465,-500.0,0.0005589,120]
[323592763,1714099867475,-14214.71,0.0005589,120]
[323592765,1714099867485,-588.6,0.0005589,120]
[323592766,1714099867496,-500.0,0.0005589,120]
[323592767,1714099867505,-2011.18,0.0005589,120]
[323592768,1714099867518,-500.0,0.0005589,120]
[323592769,1714099867528,-1690.05,0.0005589,120]
[323592770,1714099867538,-2570.54,0.0005589,120]
[323592771,1714099867548,-3418.88,0.0005589,21]
[323592772,1714099867558,-500.0,0.0005589,120]
[323592773,1714099867567,-500.0,0.0005589,120]
[323592774,1714099867577,-500.0,0.0005589,7]
[323592775,1714099867590,-500.0,0.0005589,120]
[323592776,1714099867601,-1241.59,0.0005589,120]
[323592777,1714099867611,-541.93,0.0005589,120]
[323592778,1714099867621,-500.0,0.0005589,120]
[323592779,1714099867631,-500.0,0.0005589,120]
[323592780,1714099867642,-620.31,0.0005589,120]
[323592781,1714099867652,-4286.96,0.0005589,120]
[323592782,1714099867663,-500.0,0.0005589,120]
[323592783,1714099867675,-500.0,0.0005589,120]
[323592784,1714099867686,-500.0,0.0005589,120]
[323592785,1714099867696,-632.57,0.0005589,120]
[323592786,1714099867707,-2408.71,0.0005589,120]
[323592787,1714099867717,-500.0,0.0005589,120]
[323592788,1714099867727,-1365.71,0.0005589,120]
[323592790,1714099867737,-500.0,0.0005589,120]
[323592791,1714099867748,-500.0,0.0005589,120]
[323592793,1714099867757,-500.0,0.0005589,120]
[323592795,1714099867767,-631.83,0.0005589,120]
[323592797,1714099867776,-500.0,0.0005589,120]
[323592799,1714099867786,-500.0,0.0005589,120]
[323592800,1714099867796,-500.0,0.0005589,120]
[323592801,1714099867805,-500.0,0.0005589,120]
[323592802,1714099867815,-500.0,0.0005589,120]
[323592803,1714099867825,-500.0,0.0005589,120]
[323592804,1714099867836,-500.0,0.0005589,120]
[323592805,1714099867846,-500.0,0.0005589,120]
[323592806,1714099867855,-500.0,0.0005589,60]
[323592807,1714099867865,-500.0,0.0005589,120]
[323592808,1714099867875,-597.63,0.0005589,120]
[323592809,1714099867885,-500.0,0.0005589,120]
[323592810,1714099867894,-3900.41,0.0005589,120]
[323592811,1714099867904,-500.0,0.0005589,120]
[323592812,1714099867916,-541.35,0.0005589,120]
[323592813,1714099867932,-500.0,0.0005589,120]
[323592814,1714099867941,-500.0,0.0005589,120]
[323592815,1714099867951,-500.0,0.0005589,120]
[323592816,1714099867960,-500.0,0.0005589,120]
[323592817,1714099867969,-501.88601853,0.0005589,120]
[323592818,1714099867979,-500.0,0.0005589,120]
[323592819,1714099867988,-500.0,0.0005589,120]
[323592820,1714099867997,-1321.28,0.0005589,120]
[323592821,1714099868007,-166.36775956,0.0005589,120]
[323592822,1714099868016,-500.0,0.0005589,120]
[323592823,1714099868025,-500.0,0.0005589,120]
[323592824,1714099868034,-500.0,0.0005589,120]
[323592825,1714099868044,-709.88,0.0005589,120]
[323592826,1714099868053,-500.0,0.0005589,120]
[323592827,1714099868062,-388.52983709,0.0005589,120]
[323592828,1714099868071,-502.25734846,0.0005589,120]
[323592829,1714099868081,-1376.96,0.0005589,120]
[323592830,1714099868093,-500.0,0.0005589,120]
[323592831,1714099868102,-1270.91,0.0005589,120]
[323592832,1714099868111,-500.0,0.0005589,120]
[323592833,1714099868120,-3138.71,0.0005589,120]
[323592834,1714099868130,-876.13,0.0005589,120]
[323592835,1714099868139,-500.8354819,0.0005589,120]
[323592836,1714099868148,-1259.67,0.0005589,120]
[323592837,1714099868157,-1612.5,0.0005589,120]
[323592838,1714099868167,-500.0,0.0005589,120]
[323592839,1714099868176,-500.0,0.0005589,120]
[323592840,1714099868185,-625.72,0.0005589,120]
[323592841,1714099868194,-500.0,0.0005589,120]
[323592842,1714099868203,-500.0,0.0005589,120]
[323592843,1714099868212,-500.0,0.0005589,120]
[323592844,1714099868222,-648.27,0.0005589,120]
[323592845,1714099868231,-500.0,0.0005589,120]
[323592846,1714099868240,-735.51,0.0005589,120]
[323592847,1714099868249,-500.0,0.0005589,120]
[323592848,1714099868259,-406.23768077,0.0005589,120]
[323592849,1714099868268,-500.0,0.0005589,120]
[323592850,1714099868277,-500.0,0.0005589,2]
[323592852,1714099868287,-1608.79,0.0005589,120]
[323592854,1714099868296,-4378.86,0.0005589,120]
[323592855,1714099868305,-653.21,0.0005589,120]
[323592856,1714099868315,-500.0,0.0005589,120]
[323592857,1714099868324,-2607.7,0.00056164,120]
[323592859,1714099868333,-500.0,0.00056164,120]
[323592861,1714099868343,-500.0,0.00056164,120]
[323592863,1714099868353,-500.0,0.00056164,120]
[323592865,1714099868362,-500.0,0.00056164,120]
[323592867,1714099868371,-500.0,0.00056164,120]
[323592869,1714099868381,-500.0,0.00056164,120]
[323592870,1714099868390,-500.0,0.00056164,120]
[323592871,1714099868399,-500.0,0.00056164,120]
[323592872,1714099868409,-500.0,0.00056164,120]
[323592873,1714099868420,-500.0,0.00056164,120]
[323592874,1714099868438,-500.0,0.00056164,120]
[323592875,1714099868456,-500.0,0.00056164,120]
[323592876,1714099868465,-500.0,0.00056164,120]
[323592877,1714099868475,-500.0,0.00056164,120]
[323592878,1714099868483,-500.0,0.00056164,120]
[323592879,1714099868493,-976.68,0.00056164,120]
[323592880,1714099868503,-314.74430686,0.00056164,120]
[323592881,1714099868513,-500.0,0.00056164,120]
[323592882,1714099868522,-500.0,0.00056164,120]
[323592883,1714099868531,-500.0,0.00056164,120]
[323592884,1714099868540,-500.0,0.00056164,120]
[323592885,1714099868549,-500.0,0.00056164,120]
[323592886,1714099868558,-500.0,0.00056164,120]
[323592887,1714099868567,-500.0,0.00056164,120]
[323592888,1714099868576,-500.0,0.00056164,120]
[323592889,1714099868586,-512.96,0.00056164,120]
[323592890,1714099868596,-500.0,0.00056164,120]
[323592891,1714099868606,-500.0,0.00056164,120]
[323592892,1714099868615,-500.0,0.00056164,120]
[323592893,1714099868624,-500.0,0.00056164,120]
[323592894,1714099868634,-508.01462536,0.00056164,120]
[323592895,1714099868643,-500.0,0.00056164,120]
[323592896,1714099868652,-500.0,0.00056164,120]
[323592897,1714099868662,-1900.81,0.00056164,120]
[323592898,1714099868671,-500.0,0.00056164,120]
[323592899,1714099868680,-1543.65,0.00056164,120]
[323592900,1714099868690,-500.0,0.00056164,120]
[323592901,1714099868699,-500.0,0.00056164,120]
[323592902,1714099868708,-500.0,0.00056164,120]
[323592903,1714099868718,-505.2212481,0.00056164,120]
[323592904,1714099868727,-298.80067427,0.00056164,120]
[323592905,1714099868736,-500.0,0.00056164,120]
[323592906,1714099868745,-500.0,0.00056164,120]
[323592907,1714099868755,-516.59,0.00056164,2]
[323592908,1714099868764,-502.79151828,0.00056164,120]
[323592909,1714099868773,-500.0,0.00056164,120]
[323592910,1714099868783,-500.0,0.00056164,120]
[323592911,1714099868792,-641.72,0.00056164,120]
[323592912,1714099868801,-500.0,0.00056164,120]
[323592913,1714099868810,-500.0,0.00056164,120]
[323592914,1714099868819,-1597.62,0.00056164,120]
[323592915,1714099868828,-500.0,0.00056164,120]